Cogmind - Beta 14 @@@ ROGUE MODE // 2024.08.27 @ 22:11:52 Player: Cereal Killer Result: Destroyed by Triborg with Siege Cannon Performance ------------- Evolutions (0) 0 Regions Visited (4) 800 Robots Destroyed (23) 115 Value Destroyed (635) 635 Prototype IDs (21) 420 Alien Tech Used (0) 0 Bonus (711) 711 TOTAL SCORE: 2681 Bonus ------- Follower Combat Kills 431 Registered with UFD 300 Friendly Fire -20 Cogmind --------- Core Integrity 0/250 Matter 144/300 Energy 500/500 System Corruption 1% Temperature Danger (479) Movement Rolling (82) Location -8/Scraptown Parts ------- > --- POWER (1+1) ------ Improved Deuterium Engine Fission Core (+) > --- PROPULSION (2+2) - Compact Wheel Armored Wheel Overtuned Scrapsphere (+) Overtuned Scrapsphere (+) > --- UTILITY (2+2) ---- Improved Light Armor Plating (+) Tech Extrapolator (+) > --- WEAPON (2+2) ----- Overtuned Barrage Gun (+) Slug Cannon Enhanced Flamer (+) > --- INVENTORY (5) ---- Makeshift Light Armor Plating Junk Cannon Peak State ------------ > --- POWER ------------ Improved Deuterium Engine Fission Core > --- PROPULSION ------- Compact Wheel Armored Wheel Overtuned Scrapsphere Overtuned Scrapsphere > --- UTILITY ---------- Improved Light Armor Plating Tower Shield Tech Extrapolator > --- WEAPON ----------- Overtuned Barrage Gun Compact Gauss Rifle Slug Cannon Enhanced Flamer > --- INVENTORY -------- Makeshift Light Armor Plating Junk Cannon [Rating: 64] Favorites ----------- Power Light Ion Engine Engine Light Ion Engine Power Core Fission Core Propulsion Compact Wheel Wheel Compact Wheel Utility Small Storage Unit Device V3-11A's Pendant Storage Small Storage Unit Processor Tech Extrapolator Protection Improved Light Armor Plating Weapon Subdweller Beam Cannon Energy Gun Medium Laser Energy Cannon Subdweller Beam Cannon Ballistic Gun Subdweller Machine Gun Ballistic Cannon Light Cannon Launcher Heavy Rocket Launcher Special Weapon Enhanced Flamer Slashing Weapon Makeshift Axe Build | -11 -10 -10 -8 -8 ------- Run | Yrd Mat Sub Rec Scr Slots Evolved . | . . . . . Power . | . . . . . Propulsion . | . . . . . Utility . | . . . . . Weapon . | . . . . . Parts Attached 50 | 5 11 15 . 19 Power 5 | . 2 . . 3 Engine 3 | . 2 . . 1 Core 2 | . . . . 2 Reactor . | . . . . . Propulsion 11 | 2 . 5 . 4 Treads . | . . . . . Leg . | . . . . . Wheel 11 | 2 . 5 . 4 Hover . | . . . . . Flight . | . . . . . Utility 10 | 1 1 3 . 5 Device 4 | . 1 3 . . Storage 2 | 1 . . . 1 Processor 1 | . . . . 1 Hackware . | . . . . . Protection 3 | . . . . 3 Artifact . | . . . . . Weapon 24 | 2 8 7 . 7 Energy Gun 4 | 1 . 3 . . Energy Cannon 1 | . . 1 . . Ballistic Gun 6 | 1 2 1 . 2 Ballistic Cannon 5 | . 2 1 . 2 Launcher 5 | . 4 . . 1 Special Weapon 1 | . . . . 1 Impact Weapon . | . . . . . Slashing Weapon 2 | . . 1 . 1 Piercing Weapon . | . . . . . Special Melee Weapon . | . . . . . Unidentified Prototypes 1 | . . 1 . . Parts Lost 5 | . 1 2 . 2 Power 1 | . 1 . . . Propulsion 2 | . . 2 . . Utility 1 | . . . . 1 Weapon 1 | . . . . 1 Highest Loss Streak 1 | . 1 1 . 1 To Critical Strikes . | . . . . . Average Slot Usage (%) 96 | . 97 98 100 93 Engine 10 | . 12 14 14 4 Core 3 | . . . . 9 Wheel 27 | . 28 27 28 27 Device 8 | . 12 14 14 . Storage 13 | . 14 14 14 13 Protection 3 | . . . . 8 Energy Gun 2 | . 11 3 . . Energy Cannon 8 | . . 8 14 9 Ballistic Gun 10 | . 12 9 14 10 Ballistic Cannon 3 | . 2 4 . 3 Launcher 2 | . 1 1 . 3 Peak Build Rating 64 | 5 8 16 15 64 Average Rating 16 | 2 6 12 15 22 On Entrance 8 | . 5 8 15 15 Naked Turns . | . . . . . Heaviest Build 74 | 8 16 21 21 74 Greatest Support 44 | 26 26 40 36 44 Greatest Overweight (x) 2 | . . 1 . 2 Average Overweight (x) . | . . . . 1 Largest Inventory Capacity 15 | 8 8 8 8 15 Average Capacity 9 | 6 8 8 8 12 Most Carried 15 | 5 8 8 8 15 Average Carried 8 | 2 5 7 8 10 Final Capacity 8 | 8 8 8 8 5 Final Carried 8 | 3 8 8 8 3 Class Distribution -------------------- 96% | Mutant Dominant Class ---------------- Mutant | -10/Materials Mutant | -10/Subcaves Mutant | -8/Recycling Mutant | -8/Scraptown Resources | -11 -10 -10 -8 -8 ----------- Run | Yrd Mat Sub Rec Scr Matter Collected 1129 | 250 412 255 . 212 Remotely . | . . . . . Salvage Created 698 | . 485 142 . 71 Parts 48 | . 32 10 . 6 Haulers Intercepted . | . . . . . Recyclers Shooed . | . . . . . Parts Field Recycled . | . . . . . Retrieved Matter . | . . . . . Parts Self-Destructed 12 | . . 12 . . Prevented . | . . . . . Kills | -11 -10 -10 -8 -8 ------- Run | Yrd Mat Sub Rec Scr Combat Hostiles Destroyed 16 | . 9 5 . 2 Guns 8 | . 6 1 . 1 Cannons 4 | . . 3 . 1 AOE 4 | . 3 1 . . Classes Destroyed 10 | . 5 2 . 3 Builder 3 | . 3 . . . Recycler 2 | . 2 . . . Turret 1 | . . . . 1 Watcher 1 | . 1 . . . Swarmer 3 | . 3 . . . Grunt 7 | . 6 1 . . Sentry 1 | . . 1 . . Subdweller 3 | . . 3 . . Guru 1 | . . . . 1 Elite 1 | . . . . 1 Best Kill Streak 5 | . 5 2 . 1 Combat Bots Only 3 | . 3 2 . 1 Max Kills in Single Turn 3 | . 3 1 . 1 Gunslinging . | . . . . . Exploded 3 | . 3 1 . . Melee . | . . . . . Uniques/NPCs Destroyed . | . . . . . Combat | -11 -10 -10 -8 -8 -------- Run | Yrd Mat Sub Rec Scr Hostile Shots Fired 133 | . 37 19 . 77 Missed 34 | . 6 6 . 22 Damage Taken 1818 | . 379 288 . 1151 Core 369 | . 74 103 . 192 Absorbed by Shields . | . . . . . Regen/Repaired (Parts) 206 | . . . . 206 Core Remaining (%) 100 | 100 . . . . Volleys Fired 85 | . 42 26 . 17 Largest 3 | . 2 2 . 3 Hottest 158 | . 85 110 . 158 Shots Fired 163 | . 74 51 . 38 Gun 93 | . 55 22 . 16 Cannon 51 | . 10 25 . 16 Launcher 15 | . 9 4 . 2 Special 4 | . . . . 4 Kinetic 95 | . 37 26 . 32 Thermal 53 | . 28 21 . 4 Explosive 15 | . 9 4 . 2 Electromagnetic . | . . . . . Robot Hit Streak 11 | . 10 11 . 5 Robot Miss Streak 4 | . 2 3 . 4 Penetration Max . | . . . . . Secondary Targets . | . . . . . Shots Hit Robots 76 | . 41 18 . 17 Core Hits 45 | . 27 9 . 9 Critical Kills . | . . . . . Critical Parts Destroyed 2 | . 1 . . 1 Critical Strikes 7 | . 3 3 . 1 Burn 5 | . 2 3 . . Destroy 2 | . 1 . . 1 Melee Attacks 2 | . . . . 2 Impact . | . . . . . Slashing 2 | . . . . 2 Piercing . | . . . . . Sneak Attacks . | . . . . . Combat Hostiles . | . . . . . Follow-up Attacks . | . . . . . Damage Inflicted 1621 | . 770 411 . 440 Guns 605 | . 372 95 . 138 Cannons 604 | . 122 224 . 258 Explosions 390 | . 276 92 . 22 Melee . | . . . . . Ramming . | . . . . . Kinetic 869 | . 283 190 . 396 Thermal 362 | . 211 129 . 22 Explosive 390 | . 276 92 . 22 Electromagnetic . | . . . . . Impact . | . . . . . Slashing . | . . . . . Piercing . | . . . . . Highest Corruption 1 | . . . . 1 Average Corruption 1 | . . . . 1 Corruption Purged . | . . . . . Corruption Blocked . | . . . . . Overload Shots . | . . . . . Overflow Damage 16 | . . 16 . . Projectiles 13 | . . 13 . . Explosions 3 | . . 3 . . Melee . | . . . . . Knockbacks 5 | . 3 . . 2 Impact . | . . . . . Kinetic 5 | . 3 . . 2 Secondary . | . . . . . Self-Inflicted Damage 220 | . . 31 . 189 Shots 3 | . . 1 . 2 Rammed . | . . . . . Targets Rammed . | . . . . . Kicked . | . . . . . Crushed . | . . . . . Highest Temperature 486 | . 212 . . 486 Average Temperature 117 | . 66 . . 179 Received Heat Transfer 324 | . 228 48 . 48 Effects 7 | . . . . 7 Shutdowns 2 | . . . . 2 Interference 3 | . . . . 3 Damage (minor) 2 | . . . . 2 Siege Activations . | . . . . . Robots Corrupted . | . . . . . Combat Hostiles . | . . . . . Parts Fried . | . . . . . Impact Corruptions . | . . . . . Robots Melted . | . . . . . Combat Hostiles . | . . . . . Parts Melted 2 | . 1 1 . . Heat Transferred 1381 | . 740 481 . 160 Parts Sabotaged . | . . . . . Parts Stolen . | . . . . . Parts Stripped . | . . . . . Power Chain Reactions . | . . . . . Alert | -11 -10 -10 -8 -8 ------- Run | Yrd Mat Sub Rec Scr Peak Influence 352 | . 352 . 100 . Initial 44 | . . . 44 . Average 127 | . 178 . 83 . Maximum Alert Level 1 | . 1 . . . Low Security (%) 78 | 100 56 . 100 . Level 1 21 | . 43 . . . Level 2 . | . . . . . Level 3 . | . . . . . Level 4 . | . . . . . Level 5 . | . . . . . High Security . | . . . . . Max Security . | . . . . . Squads Dispatched 2 | . 2 . . . Investigation . | . . . . . Extermination . | . . . . . Reinforcement 2 | . 2 . . . Assault . | . . . . . Garrison . | . . . . . Intercept . | . . . . . Searches Triggered . | . . . . . Construction Impeded . | . . . . . Haulers Reinforced . | . . . . . Active Scanning Responses . | . . . . . Cargo Convoy Interrupts . | . . . . . Stealth | -11 -10 -10 -8 -8 --------- Run | Yrd Mat Sub Rec Scr Distress Signals 3 | . 3 . . . Communications Jammed . | . . . . . Distress Signals . | . . . . . Times Spotted 46 | . 14 15 . 17 Peak Tracking Total 14 | . 4 5 . 14 Tactical Retreats 4 | . . 1 . 3 Traps | -11 -10 -10 -8 -8 ------- Run | Yrd Mat Sub Rec Scr Traps Triggered 2 | . . 1 . 1 Indirectly . | . . . . . Trap Hack Attempts . | . . . . . Triggered . | . . . . . Disarmed . | . . . . . Reprogrammed . | . . . . . Reused 1 | . . . . 1 Traps Extracted . | . . . . . Installed 3 | . . . . 3 Triggered . | . . . . . Most Traps Carried 3 | . . . . 3 Machines | -11 -10 -10 -8 -8 ---------- Run | Yrd Mat Sub Rec Scr Machines Disabled 16 | . 2 3 . 11 Max in Single Turn 4 | . 1 1 . 4 Machines Repaired . | . . . . . Machines Dismantled . | . . . . . Machines Sabotaged . | . . . . . Overloaded Fab Kills . | . . . . . Hacking | -11 -10 -10 -8 -8 --------- Run | Yrd Mat Sub Rec Scr Machines Accessed 12 | . 3 2 4 3 Terminals 7 | . 3 . 4 . Fabricators . | . . . . . Repair Stations . | . . . . . Recycling Units . | . . . . . Scanalyzers . | . . . . . Garrison Access . | . . . . . Total Hacks 59 | . 9 13 14 23 Successful 46 | . 5 13 5 23 Failed 12 | . 4 . 8 . Catastrophic 1 | . . . 1 . Database Lockouts 1 | . . . 1 . Manual 12 | . 3 1 8 . Terminals 23 | . 9 . 14 . Fabricators . | . . . . . Repair Stations . | . . . . . Recycling Units . | . . . . . Scanalyzers . | . . . . . Garrison Access . | . . . . . Terminal Hacks 45 | . 5 13 4 23 Record 34 | . . 12 . 22 Part Schematic 1 | . . . 1 . Robot Analysis 3 | . 2 . 1 . Prototype ID Bank 1 | . . . 1 . Branch Access Points 1 | . . . 1 . Emergency Access Points 1 | . 1 . . . Locate Traps 1 | . 1 . . . Zone Layout 1 | . 1 . . . Derelict Proto ID Bank 2 | . . 1 . 1 Fabricator Hacks . | . . . . . Repair Station Hacks . | . . . . . Recycling Unit Hacks . | . . . . . Scanalyzer . | . . . . . Garrison Access Hacks . | . . . . . Unauthorized Hacks 1 | . . . 1 . Terminals 1 | . . . 1 . Botnet 1 | . . . 1 . Fabricators . | . . . . . Repair Stations . | . . . . . Recycling Units . | . . . . . Scanalyzers . | . . . . . Garrison Access . | . . . . . Data Cores Recovered . | . . . . . Used . | . . . . . Hacking Detections 6 | . 2 . 4 . Full Trace Events 2 | . . . 2 . Feedback Events . | . . . . . Feedback Blocked . | . . . . . Robot Schematics Acquired . | . . . . . Robots Built . | . . . . . Authchips . | . . . . . Time . | . . . . . Total Robot Build Rating . | . . . . . Part Schematics Acquired 1 | . . . 1 . Parts Built . | . . . . . Authchips . | . . . . . Time . | . . . . . Total Part Build Rating . | . . . . . Parts Repaired . | . . . . . Time . | . . . . . Parts Recycled . | . . . . . Recycled Matter . | . . . . . Retrieved Matter . | . . . . . Retrieved Components . | . . . . . Parts Scanalyzed . | . . . . . Part Schematics Acquired . | . . . . . Parts Damaged . | . . . . . Bothacking | -11 -10 -10 -8 -8 ------------ Run | Yrd Mat Sub Rec Scr Used RIF Installer . | . . . . . Robots Hacked . | . . . . . Non-combat . | . . . . . Combat . | . . . . . Robot Hacks Applied . | . . . . . Relay Couplers Released . | . . . . . Fabnet Peak Effective % . | . . . . . Robots Rewired . | . . . . . Allies Hacked . | . . . . . Hacks Repelled . | . . . . . Allies | -11 -10 -10 -8 -8 -------- Run | Yrd Mat Sub Rec Scr Total Allies 12 | . . 12 . . Largest Group 11 | . . 11 7 7 Highest-Rated Group 209 | . . 209 133 133 Highest-Rated Ally 19 | . . 19 19 19 Total Orders . | . . . . . Ally Attacks 129 | . . 54 6 69 Total Damage 2679 | . . 916 105 1658 Kills 21 | . . 7 1 13 Allies Corrupted . | . . . . . Allies Melted 1 | . . 1 . . Turrets Deployed 1 | . . . . 1 Intel | -11 -10 -10 -8 -8 ------- Run | Yrd Mat Sub Rec Scr Robot Analysis Total 3 | . 2 . 1 . Derelict Logs Recovered 6 | . . 3 . 3 Drone Launches . | . . . . . Drone Recoveries . | . . . . . Exploration | -11 -10 -10 -8 -8 ------------- Run | Yrd Mat Sub Rec Scr Turns Passed 4839 | 37 400 2128 361 1913 Spaces Moved 3771 | 34 288 1614 311 1524 Core 15 | 15 . . . . Treads . | . . . . . Legs . | . . . . . Wheels 3756 | 19 288 1614 311 1524 Hover . | . . . . . Flight . | . . . . . Fastest Speed 50 | 50 90 90 105 94 Average Speed 108 | 72 90 107 105 114 Slowest Speed 130 | 90 90 120 105 130 Overloaded Moves . | . . . . . Propulsion Burnouts . | . . . . . Robots Hopped . | . . . . . Cave-ins Triggered . | . . . . . Exploration Rate (%) 57 | 2 63 89 53 80 Regions Visited 4 Branch Regions 3 Pre-discovered Areas 6 | . . 2 . 4 Known Exits Taken . | . . . . . Unknown Exits Taken 4 | 1 1 1 1 . Scrap Searched 14 | . . 11 . 3 Spaces Dug . | . . . . . Terrain Destroyed 96 | . 20 14 . 62 Melee . | . . . . . Projectile 5 | . . . . 5 AOE 91 | . 20 14 . 57 Terrain Rammed . | . . . . . Walls Destroyed . | . . . . . Machines Disabled . | . . . . . Actions | -11 -10 -10 -8 -8 --------- Run | Yrd Mat Sub Rec Scr Total 4371 | 46 356 1969 345 1655 Wait 369 | . 6 283 35 45 Move 3767 | 33 287 1613 310 1524 Hop . | . . . . . Pick Up 59 | 8 9 14 . 28 Fast Attach 2 | . . 2 . . Attach 21 | 5 3 1 . 12 Detach . | . . . . . Swap 27 | . 8 12 . 7 Drop 36 | . 1 18 . 17 Fire 85 | . 42 26 . 17 Melee 2 | . . . . 2 Ram . | . . . . . Kick . | . . . . . Crush . | . . . . . Escape Stasis . | . . . . . Rewire . | . . . . . Trap 3 | . . . . 3 Miscellaneous . | . . . . . Route ------- -11/Scrapyard -10/Materials (discovered 4 exits: [*Mat x2] / [*Min] / *Sub) -10/Subcaves (discovered 3 exits: [*Mat x2] / *Rec) -8/Recycling -8/Scraptown History --------- Turn | Location | Event 6 | -11/Scrapyard | Discovered new exit (range 16) 38 | -11/Scrapyard | Entered Materials 151 | -10/Materials | Discovered new exit (range 11) 240 | -10/Materials | Discovered new exit (range 7) 300 | -10/Materials | Build established: Mutant 328 | -10/Materials | Discovered new exit (range 16) 404 | -10/Materials | Discovered new exit (range 10) 438 | -10/Materials | Entered Subcaves 677 | -10/Subcaves | Learned location of 1 exit from Materials 677 | -10/Subcaves | Discovered new exit (range 7) 756 | -10/Subcaves | Core integrity fell below 50% 810 | -10/Subcaves | Learned location of Zion (-6) 810 | -10/Subcaves | Met a Zionite searching for "candidates" 886 | -10/Subcaves | Visited Clippyterm 890 | -10/Subcaves | Learned location of Section 7 (-2) 890 | -10/Subcaves | Learned Factory emergency access door positions 1008 | -10/Subcaves | Visited triangular shrine 1015 | -10/Subcaves | Found Prototype Device 1016 | -10/Subcaves | Identified V3-11A's Pendant 1021 | -10/Subcaves | Befriended Subdweller 1105 | -10/Subcaves | Discovered new exit (range 13) 1141 | -10/Subcaves | Disturbed a concealed Subdweller 1141 | -10/Subcaves | Befriended Subdweller 1231 | -10/Subcaves | Befriended Subdweller 1302 | -10/Subcaves | Disturbed a concealed Subdweller 1306 | -10/Subcaves | Befriended Subdweller 1626 | -10/Subcaves | Befriended Subdweller 1626 | -10/Subcaves | Befriended Subdweller 1709 | -10/Subcaves | Visited 4L-MR0's lab 1724 | -10/Subcaves | Found Tower Shield 1866 | -10/Subcaves | Befriended Subdweller 1871 | -10/Subcaves | Befriended Subdweller 1957 | -10/Subcaves | Shifting Twisted Machinery released Mak. Light Armor Plating 1998 | -10/Subcaves | Shifting Twisted Machinery released Sub. Optics 2026 | -10/Subcaves | Befriended Subdweller 2031 | -10/Subcaves | Learned location of 1 exit from Materials 2036 | -10/Subcaves | Befriended Subdweller 2084 | -10/Subcaves | Shifting Twisted Machinery released Battle Rifle 2118 | -10/Subcaves | Shifting Twisted Machinery released Enh. Flamer 2121 | -10/Subcaves | Shifting Twisted Machinery released Riot Gun 2147 | -10/Subcaves | Learned Materials emergency access door positions 2316 | -10/Subcaves | Befriended Subdweller 2462 | -10/Subcaves | A swath of the cavern ceiling suddenly collapsed 2496 | -10/Subcaves | Befriended Subdweller 2517 | -10/Subcaves | Discovered new exit (range 12) 2562 | -10/Subcaves | Lost 4 allies 2566 | -10/Subcaves | Entered Recycling 2566 | -8/Recycling | Accompanied by 7 allies 2878 | -8/Recycling | Scanned before Scraplab entrance 2905 | -8/Recycling | Entered Scraplab 2922 | -8/Recycling | Discovered new exit (range 3) 2927 | -8/Recycling | Entered Scraptown 2927 | -8/Scraptown | Accompanied by 7 allies 2971 | -8/Scraptown | Delivered V3-11A's Pendant to T0-NE2 in exchange for information 3055 | -8/Scraptown | Heard Great Nut preacher, LISTEN AND RECITE! 3119 | -8/Scraptown | Scanned Subdweller tech in exchange for log data 3123 | -8/Scraptown | Learned Research terminal intel 3124 | -8/Scraptown | Learned location of Testing (-2) 3146 | -8/Scraptown | Learned Research stockpile data 3184 | -8/Scraptown | Visited Comm Corps 3198 | -8/Scraptown | Visited Shadow of the Wyrm 3237 | -8/Scraptown | Visited UFD Registry 3237 | -8/Scraptown | Registered with UFD as "Dualwarp" 3308 | -8/Scraptown | Visited Science Guys 3391 | -8/Scraptown | Delivered Scrap Shield to a Scientist 3537 | -8/Scraptown | Visited Curators Association 3587 | -8/Scraptown | Visited Scrap Suit Storage 3604 | -8/Scraptown | Visited DA-N13 Charitable Foundation 3617 | -8/Scraptown | Found DCF Scrap (28 items) 3683 | -8/Scraptown | Visited Derelict Rescue Squad 3691 | -8/Scraptown | Found DRS Beacon 3719 | -8/Scraptown | Visited Junk Cannon Lab 3741 | -8/Scraptown | Found Prototype Special Weapon 3769 | -8/Scraptown | Visited Cartography Club 3944 | -8/Scraptown | Learned location of Mines (-8) 3944 | -8/Scraptown | Learned location of Warlord (-5) 3944 | -8/Scraptown | Learned 12 Materials zone layouts 3944 | -8/Scraptown | Learned 8 Factory zone layouts 3944 | -8/Scraptown | Learned 8 Research zone layouts 3944 | -8/Scraptown | Learned 12 Research zone layouts 3944 | -8/Scraptown | Learned 8 Access zone layouts 3944 | -8/Scraptown | Learned 24 Proximity Caves zone layouts 3944 | -8/Scraptown | Learned Factory emergency access door positions 3944 | -8/Scraptown | Learned location of 1 exit from Lower Caves 3944 | -8/Scraptown | Learned location of 2 exits from Upper Caves 4034 | -8/Scraptown | Visited CPS Storage 4112 | -8/Scraptown | Visited CR-KLE's Repair Center 4127 | -8/Scraptown | Visited TADAMA 4158 | -8/Scraptown | Visited Scrapoid Research Area 4411 | -8/Scraptown | CR-KLE repaired 6 parts 4550 | -8/Scraptown | Warned about trapping Scraptown 4644 | -8/Scraptown | Attacked by Scraptown defenders 4720 | -8/Scraptown | Found Deploy-a-Sentry 4731 | -8/Scraptown | DAS Turret deployed 4746 | -8/Scraptown | Lost 6 allies 4748 | -8/Scraptown | Core integrity fell below 20% 4758 | -8/Scraptown | Attached Tower Shield, gained temporary slots: Power, Propulsion x2, Utility x2, Weapon x2 4840 | -8/Scraptown | Destroyed by Triborg with Siege Cannon Last Messages --------------- Acquired 6 matter. Machine disabled. Overheating: Fission Core damaged (-15). Penetrated by Bolt. Power failure, Fission Core shutdown. Siege Slug penetrates Wall. Slug penetrates 27-XEX(h). Penetrated by Bolt. 7O-PVU(j): "If it isn't public enemy #1: the new Dualwarp!" Penetrated by Siege Slug. 27-XEX(h) knocked back. Penetrated by Bolt. Power failure, Imp. Deuterium Engine shutdown. Penetrated by Siege Slug. Penetrated by Bolt. Tower Shield destroyed. Penetrated by Bolt. Overheating: Arm. Wheel damaged (-2). Penetrated by Siege Slug. Map ----- +----------------------------------------------------+ | ??????# #X#### #"" "#????#"" ""#?# #""" " | | ?????## # #### ## #" "#????#" "#?# #""" " | | ?????# # # #""" "###"##"" ""#?# #" | | ?????#### ## ###### # #?# #""" | | ?????# # # #?# # | | ?????# # # #?# #""""? | | ?????####### ########### ########### ###?# ## #?? | | ???????##### ########### ########### ##### ## ##? | | ???????#"""" """"""""""" """"""""""" """"" "" "## | | ???????#" "## | | ???????#" "## | | ???????#" "## | | ???????#" "## | | ???#####" | | ???#"""" """""""""""""""""""""""""""" "## | | ???#"""" """"""""""""""""""""""""""" % "## | | ???#"""" ""###### ################"" "## | | ???#"""" ""#? ##????????#"" "## | | ???#"""" ""# X"?????????# " "#? | | ##?#"""" ""# "" "" ##??????### = "#? | | "#"#"""" ""# "" "" X"?#?#???#"" % "#? | | """#"""" ""# " " #;#;##### ; ! "## | | "#######" "" "" TTj | | ##?????#" "" "" h TTjj [[ ## | | ########" ""# " ! ;%;#####" " %! #? | | ""# "" % @ #?????#""" *! #? | | ""# "" !%##?????# " ## | | ""# ""#?????## " / ## | | ""# ##??????# " !%[ "## | | ""###### ##############"" !&* !""# | | """"""""""""""""""""""" " !&%!%= #% | | """""""""""""""""""""" *![% !=[% | | =%!% !%=&%[ %"" | | % ! %%[&& %# | | % = "" | | #""""#" !=! =% ! ## | | #????#" [%[ % %=! " | | #????#"""""" """"""""""" """" """"" """ ## | | ###????####### ########### ########### ###### ## | | ???????????? ??????? ???# | "# #? | | ???????????# #?????"" ??#" | # #? | | ???????????# #?????" "# " "" ""#! #? | | ???????????# #?????" """"" "# " "" ""#=[ #? | | ???????????#######????#" ????? "# ""#%[ #? | | ???????????????????????" ??????"#""& """"#*! ## | | ??????????????????????#" ???????#"""" """# | | ??????????????????????#"????????#""!" "# | | ???????????????????????"????????#"""" """# | | ???????????????????????"????????#""" X """""# | | ????????????????????????????????#"""""""""""# % | +----------------------------------------------------+ Best States ------------- Heat Dissipation 25 Energy Generation 29 Energy Capacity 500 Matter Stores 300 Matter Capacity 300 Sight Range 16 Terrain Scan Range 14 Terrain Scan Density 10 Armor Coverage 2150 Evasion (%) 50 Item Schematics ----------------- Xenon Bombardment Thruster | -8/Recycling | Hacked Robot Schematics ------------------ None Fabricated ------------ Nothing Alien Tech Used ----------------- None Achievements -------------- None Challenges ------------ None Game ------ Seed NodeMachineDevice Manual? 0 Play Time 00:54:41 Cumulative 177.5 hours Start 2024.08.27 @ 21:08:26 End 2024.08.27 @ 22:11:52 Sessions 1 Manual Loads 0 Difficulty Rogue Special Mode None Game No. 156 Rogue 147 Adventurer 9 Explorer 0 Win Type - Total 0 Types 0/0/0/0/0/0/0/0/0 Lore% 67 Gallery% 68 Achievement% 54 Wizard Run 0 Options --------- Layout 1 ASCII 0 Keyboard 0 Movement Numpad Keybinds 0 Fullscreen 1 Font 24/Smallcaps Map View 50x35 Zoom Use 0% Tactical HUD 0 Map Filters NONE Filters NONE Steam 1 RUN: 36d74c14-3602-4560-8613-8a87d811053b